[Event "Early-Titled-Tuesday-Blitz-October-03-2023"]
[Site "Chess.com"]
[Date "2023.10.03"]
[Round "8"]
[White "arenal72"]
[Black "Ducke13"]
[Result "1-0"]
[WhiteElo "2382"]
[BlackElo "2486"]
[TimeControl "180+1"]
[EndTime "9:29:59 PDT"]
[Termination "arenal72 won on time"]

1. e4 {[%clk 0:02:53.4]} 1... c5 {[%clk 0:02:59]} 2. Nc3 {[%clk 0:02:49.6]} 2...
d6 {[%clk 0:02:57.5]} 3. d4 {[%clk 0:02:48.9]} 3... cxd4 {[%clk 0:02:56.5]} 4.
Qxd4 {[%clk 0:02:49.8]} 4... Nc6 {[%clk 0:02:55.5]} 5. Qd2 {[%clk 0:02:49.7]}
5... g6 {[%clk 0:02:54.5]} 6. b3 {[%clk 0:02:48.8]} 6... Bh6 {[%clk 0:02:50.8]}
7. f4 {[%clk 0:02:48.2]} 7... Nf6 {[%clk 0:02:50.2]} 8. Bb2 {[%clk 0:02:40.7]}
8... e5 {[%clk 0:02:41.1]} 9. g3 {[%clk 0:02:23.5]} 9... O-O {[%clk 0:02:40.5]}
10. O-O-O {[%clk 0:02:22.4]} 10... Re8 {[%clk 0:02:38.7]} 11. Bg2 {[%clk
0:02:20.1]} 11... Bg4 {[%clk 0:02:34.2]} 12. Nge2 {[%clk 0:02:18.9]} 12... Nd4
{[%clk 0:02:24.1]} 13. Nxd4 {[%clk 0:02:17.4]} 13... Bxd1 {[%clk 0:02:12.2]} 14.
Qxd1 {[%clk 0:02:18.3]} 14... exd4 {[%clk 0:02:11]} 15. Qxd4 {[%clk 0:02:19.2]}
15... Bg7 {[%clk 0:02:10]} 16. Nd5 {[%clk 0:02:16.4]} 16... Nh5 {[%clk
0:02:03.2]} 17. Qb4 {[%clk 0:02:16.3]} 17... Bxb2+ {[%clk 0:01:40]} 18. Kxb2
{[%clk 0:02:17.2]} 18... Nf6 {[%clk 0:01:27.4]} 19. Qxb7 {[%clk 0:02:14.8]}
19... Nxd5 {[%clk 0:01:25.2]} 20. Qxd5 {[%clk 0:02:15.7]} 20... Rc8 {[%clk
0:01:20.1]} 21. Rd1 {[%clk 0:02:11]} 21... Qf6+ {[%clk 0:01:18.4]} 22. Qd4
{[%clk 0:02:10.9]} 22... Qxd4+ {[%clk 0:01:03.4]} 23. Rxd4 {[%clk 0:02:11.8]}
23... Red8 {[%clk 0:00:53.3]} 24. c4 {[%clk 0:02:09.4]} 24... Kf8 {[%clk
0:00:53.7]} 25. b4 {[%clk 0:02:03.3]} 25... Ke7 {[%clk 0:00:53.1]} 26. Kb3
{[%clk 0:02:00.8]} 26... Rc7 {[%clk 0:00:52.2]} 27. a3 {[%clk 0:01:59.8]} 27...
f6 {[%clk 0:00:50.5]} 28. h4 {[%clk 0:01:52.9]} 28... h6 {[%clk 0:00:50.3]} 29.
Rd5 {[%clk 0:01:43.9]} 29... Rdc8 {[%clk 0:00:44.3]} 30. Bh3 {[%clk 0:01:41.5]}
30... Rb8 {[%clk 0:00:38.5]} 31. a4 {[%clk 0:01:24.9]} 31... Rb6 {[%clk
0:00:38]} 32. a5 {[%clk 0:01:22.1]} 32... Rbc6 {[%clk 0:00:36.9]} 33. Bf1 {[%clk
0:01:17.8]} 33... a6 {[%clk 0:00:34.8]} 34. Bd3 {[%clk 0:01:12.5]} 34... Rc8
{[%clk 0:00:28.8]} 35. e5 {[%clk 0:01:09.7]} 35... dxe5 {[%clk 0:00:26.1]} 36.
fxe5 {[%clk 0:01:10.6]} 36... fxe5 {[%clk 0:00:22.6]} 37. Rxe5+ {[%clk
0:01:09.9]} 37... Kf6 {[%clk 0:00:22.6]} 38. Re3 {[%clk 0:01:03.7]} 38... Rd8
{[%clk 0:00:22.5]} 39. b5 {[%clk 0:00:58.4]} 39... Rcd6 {[%clk 0:00:22]} 40. Bc2
{[%clk 0:00:56]} 40... axb5 {[%clk 0:00:17.1]} 41. cxb5 {[%clk 0:00:56.9]} 41...
Rd5 {[%clk 0:00:15.4]} 42. Kb4 {[%clk 0:00:51.8]} 42... Rd4+ {[%clk 0:00:15.6]}
43. Kc5 {[%clk 0:00:49.9]} 43... R8d5+ {[%clk 0:00:15.1]} 44. Kc6 {[%clk
0:00:43.4]} 44... Rd6+ {[%clk 0:00:14.4]} 45. Kb7 {[%clk 0:00:40.5]} 45... Rd7+
{[%clk 0:00:11.8]} 46. Ka6 {[%clk 0:00:39.2]} 46... Rc4 {[%clk 0:00:04.3]} 47.
Bb3 {[%clk 0:00:36.3]} 47... Rd6+ {[%clk 0:00:01.9]} 48. b6 {[%clk 0:00:34.9]}
48... Rc5 {[%clk 0:00:01.7]} 49. Rf3+ {[%clk 0:00:28.1]} 49... Ke5 {[%clk
0:00:01.2]} 50. Bf7 {[%clk 0:00:20.4]} 1-0

[Event "Early-Titled-Tuesday-Blitz-October-03-2023"]
[Site "Chess.com"]
[Date "2023.10.03"]
[Round "8"]
[White "slorovel"]
[Black "Frolyanov_D"]
[Result "1-0"]
[WhiteElo "2509"]
[BlackElo "2668"]
[TimeControl "180+1"]
[EndTime "9:30:01 PDT"]
[Termination "slorovel won on time"]

1. e4 {[%clk 0:03:00.9]} 1... e5 {[%clk 0:02:59.9]} 2. Nf3 {[%clk 0:03:01]} 2...
Nf6 {[%clk 0:03:00.2]} 3. Nxe5 {[%clk 0:03:00.9]} 3... d6 {[%clk 0:03:00.4]} 4.
Nf3 {[%clk 0:03:01.4]} 4... Nxe4 {[%clk 0:03:00.7]} 5. Nc3 {[%clk 0:03:02.1]}
5... Nxc3 {[%clk 0:03:00.6]} 6. dxc3 {[%clk 0:03:03]} 6... Be7 {[%clk
0:03:01.1]} 7. Be3 {[%clk 0:03:03.6]} 7... O-O {[%clk 0:03:01.7]} 8. Qd2 {[%clk
0:03:04.5]} 8... Nd7 {[%clk 0:03:02]} 9. O-O-O {[%clk 0:03:04.5]} 9... Nf6
{[%clk 0:03:02.6]} 10. Bd3 {[%clk 0:03:04.8]} 10... c5 {[%clk 0:03:02.7]} 11. h3
{[%clk 0:03:05.1]} 11... Qa5 {[%clk 0:03:02]} 12. Kb1 {[%clk 0:03:05.2]} 12...
Be6 {[%clk 0:03:01.4]} 13. c4 {[%clk 0:03:02.3]} 13... Qxd2 {[%clk 0:03:01.3]}
14. Nxd2 {[%clk 0:03:00.9]} 14... Bd7 {[%clk 0:02:52.7]} 15. Ne4 {[%clk
0:02:59.1]} 15... Bc6 {[%clk 0:02:52]} 16. Nxf6+ {[%clk 0:02:58.3]} 16... Bxf6
{[%clk 0:02:52.9]} 17. f3 {[%clk 0:02:56.9]} 17... Rfe8 {[%clk 0:02:50.7]} 18.
Bf4 {[%clk 0:02:56.7]} 18... Be5 {[%clk 0:02:50.7]} 19. Bxe5 {[%clk 0:02:55.8]}
19... dxe5 {[%clk 0:02:51.6]} 20. c3 {[%clk 0:02:47.4]} 20... Rad8 {[%clk
0:02:49.5]} 21. Kc2 {[%clk 0:02:47.1]} 21... g6 {[%clk 0:02:49.1]} 22. h4 {[%clk
0:02:45.6]} 22... h6 {[%clk 0:02:42.3]} 23. h5 {[%clk 0:02:45.7]} 23... g5
{[%clk 0:02:39.2]} 24. Be4 {[%clk 0:02:44.5]} 24... Kg7 {[%clk 0:02:36]} 25. g4
{[%clk 0:02:29.6]} 25... Kf8 {[%clk 0:02:32.3]} 26. Rh2 {[%clk 0:02:13.1]} 26...
Ke7 {[%clk 0:02:30.3]} 27. Rhd2 {[%clk 0:02:12.7]} 27... Rxd2+ {[%clk
0:02:19.9]} 28. Rxd2 {[%clk 0:02:12.5]} 28... Rc8 {[%clk 0:02:11.9]} 29. Re2
{[%clk 0:01:57.9]} 29... f6 {[%clk 0:02:05.5]} 30. Bd5 {[%clk 0:01:50.4]} 30...
Rc7 {[%clk 0:02:03.4]} 31. Kd3 {[%clk 0:01:48.3]} 31... b6 {[%clk 0:02:00.1]}
32. Ke4 {[%clk 0:01:41.7]} 32... Bd7 {[%clk 0:01:54.5]} 33. Rd2 {[%clk
0:01:39.2]} 33... Rc8 {[%clk 0:01:50.7]} 34. b4 {[%clk 0:01:25.4]} 34... Rf8
{[%clk 0:01:41.2]} 35. Rb2 {[%clk 0:01:19.4]} 35... Kd6 {[%clk 0:01:36.7]} 36.
a4 {[%clk 0:01:04.5]} 36... f5+ {[%clk 0:01:36.4]} 37. gxf5 {[%clk 0:01:04.1]}
37... Bxf5+ {[%clk 0:01:36.9]} 38. Ke3 {[%clk 0:01:04.8]} 38... Bd7 {[%clk
0:01:31.1]} 39. a5 {[%clk 0:01:02.7]} 39... Rb8 {[%clk 0:01:09.9]} 40. axb6
{[%clk 0:00:53.2]} 40... Rxb6 {[%clk 0:01:10.8]} 41. bxc5+ {[%clk 0:00:50.1]}
41... Kxc5 {[%clk 0:01:07.7]} 42. Ra2 {[%clk 0:00:51]} 42... Kd6 {[%clk
0:00:21]} 43. Rxa7 {[%clk 0:00:49.5]} 43... Be8 {[%clk 0:00:14.2]} 44. Rh7
{[%clk 0:00:45.2]} 44... Kc5 {[%clk 0:00:13.2]} 45. Rc7+ {[%clk 0:00:42.6]}
45... Kd6 {[%clk 0:00:13.4]} 46. Rh7 {[%clk 0:00:36.2]} 46... Kc5 {[%clk
0:00:11.8]} 47. Re7 {[%clk 0:00:34.7]} 47... Bxh5 {[%clk 0:00:10.6]} 48. Rxe5
{[%clk 0:00:35.3]} 48... Kd6 {[%clk 0:00:09.3]} 49. Kd4 {[%clk 0:00:29.1]} 49...
Rb1 {[%clk 0:00:08.7]} 50. Re6+ {[%clk 0:00:27.5]} 50... Kd7 {[%clk 0:00:08.5]}
51. Rxh6 {[%clk 0:00:28.3]} 51... Rd1+ {[%clk 0:00:06]} 52. Kc5 {[%clk
0:00:28.4]} 52... Be8 {[%clk 0:00:04]} 53. Bc6+ {[%clk 0:00:28.1]} 53... Ke7
{[%clk 0:00:03]} 54. Rh7+ {[%clk 0:00:27.7]} 1-0

[Event "Early-Titled-Tuesday-Blitz-October-03-2023"]
[Site "Chess.com"]
[Date "2023.10.03"]
[Round "8"]
[White "stepanosinovsky"]
[Black "Malysch"]
[Result "0-1"]
[WhiteElo "2382"]
[BlackElo "2526"]
[TimeControl "180+1"]
[EndTime "9:30:03 PDT"]
[Termination "Malysch won on time"]

1. Nf3 {[%clk 0:02:53.6]} 1... Nf6 {[%clk 0:03:00.9]} 2. g3 {[%clk 0:02:54.4]}
2... d5 {[%clk 0:03:00.5]} 3. Bg2 {[%clk 0:02:55.3]} 3... Bg4 {[%clk 0:03:00.6]}
4. O-O {[%clk 0:02:53.8]} 4... c6 {[%clk 0:03:00.9]} 5. Re1 {[%clk 0:02:49.9]}
5... Nbd7 {[%clk 0:03:00.4]} 6. d3 {[%clk 0:02:49.2]} 6... e5 {[%clk 0:03:00.1]}
7. e4 {[%clk 0:02:49.4]} 7... Bd6 {[%clk 0:03:00.3]} 8. Nbd2 {[%clk 0:02:48]}
8... O-O {[%clk 0:02:59.7]} 9. Nf1 {[%clk 0:02:48.1]} 9... Re8 {[%clk
0:02:59.7]} 10. Ne3 {[%clk 0:02:48.2]} 10... Bh5 {[%clk 0:02:59.1]} 11. Nf5
{[%clk 0:02:42.2]} 11... Bf8 {[%clk 0:02:58.9]} 12. c3 {[%clk 0:02:39.2]} 12...
Qc7 {[%clk 0:02:58.8]} 13. a4 {[%clk 0:02:33.3]} 13... Rad8 {[%clk 0:02:58]} 14.
Qc2 {[%clk 0:02:31.7]} 14... dxe4 {[%clk 0:02:51.8]} 15. dxe4 {[%clk 0:02:29.8]}
15... Nc5 {[%clk 0:02:52.5]} 16. Bg5 {[%clk 0:02:26.4]} 16... Re6 {[%clk
0:02:30.3]} 17. b4 {[%clk 0:02:08]} 17... Ncd7 {[%clk 0:02:11.7]} 18. Nd2 {[%clk
0:01:49.7]} 18... h6 {[%clk 0:01:50.4]} 19. Be3 {[%clk 0:01:44]} 19... Ng4
{[%clk 0:01:47]} 20. a5 {[%clk 0:01:03.7]} 20... Nxe3 {[%clk 0:01:44.4]} 21.
Nxe3 {[%clk 0:01:02.6]} 21... Nf6 {[%clk 0:01:29.4]} 22. h4 {[%clk 0:00:38.4]}
22... Red6 {[%clk 0:01:23.6]} 23. Ndc4 {[%clk 0:00:37]} 23... Rd3 {[%clk
0:01:16.2]} 24. Bf1 {[%clk 0:00:34.9]} 24... R3d7 {[%clk 0:01:14.8]} 25. Bh3
{[%clk 0:00:32.3]} 25... Rd3 {[%clk 0:01:14.2]} 26. Bf1 {[%clk 0:00:18.4]} 26...
R3d7 {[%clk 0:01:13.4]} 27. Bh3 {[%clk 0:00:17]} 27... Re7 {[%clk 0:01:13.7]}
28. Kg2 {[%clk 0:00:14.4]} 28... Ree8 {[%clk 0:01:13.5]} 29. f3 {[%clk
0:00:13.3]} 29... Bg6 {[%clk 0:01:12.6]} 30. Kf2 {[%clk 0:00:11.9]} 30... c5
{[%clk 0:01:08.3]} 31. b5 {[%clk 0:00:11.2]} 31... a6 {[%clk 0:00:48.8]} 32.
Reb1 {[%clk 0:00:07.8]} 32... axb5 {[%clk 0:00:45.4]} 33. Rxb5 {[%clk
0:00:08.7]} 33... Ra8 {[%clk 0:00:18.4]} 34. Rab1 {[%clk 0:00:07.7]} 34... Ra7
{[%clk 0:00:19]} 35. Rb6 {[%clk 0:00:07]} 35... Rea8 {[%clk 0:00:17.5]} 36. Bg2
{[%clk 0:00:05.6]} 36... Rxa5 {[%clk 0:00:17.4]} 37. Nxa5 {[%clk 0:00:06.3]}
37... Rxa5 {[%clk 0:00:17.9]} 38. Rxb7 {[%clk 0:00:06.7]} 38... Qc6 {[%clk
0:00:18.3]} 39. R7b6 {[%clk 0:00:06.6]} 39... Qc7 {[%clk 0:00:18.5]} 40. R1b2
{[%clk 0:00:06.2]} 40... Qa7 {[%clk 0:00:18.6]} 41. Qb3 {[%clk 0:00:05.9]} 41...
Ra1 {[%clk 0:00:17.8]} 42. Rb8 {[%clk 0:00:05.5]} 42... Qa6 {[%clk 0:00:18.2]}
43. Qb7 {[%clk 0:00:04.3]} 43... Qd3 {[%clk 0:00:16.7]} 44. Qc8 {[%clk
0:00:03.3]} 44... Nd7 {[%clk 0:00:17.3]} 45. Re2 {[%clk 0:00:02.2]} 45... Nxb8
{[%clk 0:00:16.1]} 46. Qxb8 {[%clk 0:00:01.9]} 46... Qxc3 {[%clk 0:00:16.5]} 47.
Bh3 {[%clk 0:00:01.1]} 47... c4 {[%clk 0:00:15.7]} 48. Bf5 {[%clk 0:00:01.2]}
48... Qd4 {[%clk 0:00:15]} 0-1

[Event "Early-Titled-Tuesday-Blitz-October-03-2023"]
[Site "Chess.com"]
[Date "2023.10.03"]
[Round "8"]
[White "Kildepiotr"]
[Black "Bilan_Danila"]
[Result "0-1"]
[WhiteElo "2624"]
[BlackElo "2525"]
[TimeControl "180+1"]
[EndTime "9:30:07 PDT"]
[Termination "Bilan_Danila won by resignation"]

1. Nf3 {[%clk 0:02:56.2]} 1... d5 {[%clk 0:02:59.6]} 2. g3 {[%clk 0:02:56.6]}
2... Nf6 {[%clk 0:02:59.1]} 3. Bg2 {[%clk 0:02:56.7]} 3... c5 {[%clk 0:02:58.8]}
4. O-O {[%clk 0:02:56.9]} 4... Nc6 {[%clk 0:02:58.6]} 5. d3 {[%clk 0:02:57.6]}
5... Bg4 {[%clk 0:02:58.4]} 6. Nbd2 {[%clk 0:02:57.3]} 6... e6 {[%clk
0:02:58.6]} 7. e4 {[%clk 0:02:56.9]} 7... Be7 {[%clk 0:02:56.4]} 8. h3 {[%clk
0:02:56.6]} 8... Bh5 {[%clk 0:02:56.5]} 9. c3 {[%clk 0:02:56]} 9... O-O {[%clk
0:02:56.1]} 10. Qc2 {[%clk 0:02:55.8]} 10... Rc8 {[%clk 0:02:55.2]} 11. Re1
{[%clk 0:02:53.5]} 11... b5 {[%clk 0:02:54.6]} 12. Nh2 {[%clk 0:02:46.4]} 12...
Bg6 {[%clk 0:02:49.3]} 13. f4 {[%clk 0:02:30.9]} 13... c4 {[%clk 0:02:45]} 14.
d4 {[%clk 0:02:30.7]} 14... dxe4 {[%clk 0:02:28]} 15. Nxe4 {[%clk 0:02:31.2]}
15... b4 {[%clk 0:02:21.6]} 16. Ng4 {[%clk 0:02:22.4]} 16... Nd5 {[%clk
0:02:11.8]} 17. Ne5 {[%clk 0:02:14.9]} 17... a5 {[%clk 0:01:52.4]} 18. Bd2
{[%clk 0:02:12.3]} 18... a4 {[%clk 0:01:44.1]} 19. Qxa4 {[%clk 0:02:07.6]} 19...
Nxe5 {[%clk 0:01:33.5]} 20. fxe5 {[%clk 0:02:06.4]} 20... bxc3 {[%clk 0:01:27]}
21. bxc3 {[%clk 0:02:05.9]} 21... Qc7 {[%clk 0:01:04.4]} 22. Qd1 {[%clk
0:01:46.6]} 22... Ra8 {[%clk 0:00:58.6]} 23. h4 {[%clk 0:01:44.3]} 23... Ra3
{[%clk 0:00:54.6]} 24. Qf3 {[%clk 0:00:43.7]} 24... Bb4 {[%clk 0:00:37.3]} 25.
Rac1 {[%clk 0:00:39.4]} 25... Rxa2 {[%clk 0:00:30.9]} 26. Bg5 {[%clk 0:00:19.5]}
26... Be7 {[%clk 0:00:30.9]} 27. Bxe7 {[%clk 0:00:18.4]} 27... Qxe7 {[%clk
0:00:31]} 28. Nd6 {[%clk 0:00:17.6]} 28... Bd3 {[%clk 0:00:26.9]} 29. Qg4 {[%clk
0:00:15.4]} 29... g6 {[%clk 0:00:23.9]} 30. Bxd5 {[%clk 0:00:13.4]} 30... exd5
{[%clk 0:00:20.1]} 31. Ra1 {[%clk 0:00:13.1]} 31... h5 {[%clk 0:00:10.7]} 32.
Qf4 {[%clk 0:00:09.5]} 32... Rfa8 {[%clk 0:00:10.4]} 33. Rxa2 {[%clk 0:00:09]}
33... Rxa2 {[%clk 0:00:11.3]} 34. e6 {[%clk 0:00:03.1]} 34... fxe6 {[%clk
0:00:10.7]} 35. Nb5 {[%clk 0:00:03.3]} 35... Qf7 {[%clk 0:00:08.5]} 36. Nc7
{[%clk 0:00:03.3]} 36... Qxf4 {[%clk 0:00:08.5]} 37. gxf4 {[%clk 0:00:04.2]}
37... Rc2 {[%clk 0:00:07.5]} 38. Nxe6 {[%clk 0:00:03.4]} 38... Rxc3 {[%clk
0:00:08.1]} 39. Ng5 {[%clk 0:00:03.7]} 39... Bf5 {[%clk 0:00:08]} 40. Re8+
{[%clk 0:00:03.8]} 40... Kg7 {[%clk 0:00:08]} 41. Re7+ {[%clk 0:00:03.8]} 41...
Kf8 {[%clk 0:00:08.7]} 42. Rf7+ {[%clk 0:00:04.1]} 42... Ke8 {[%clk 0:00:08.8]}
43. Rc7 {[%clk 0:00:04.2]} 43... Rc1+ {[%clk 0:00:07.1]} 44. Kf2 {[%clk
0:00:04]} 44... c3 {[%clk 0:00:08]} 45. Nf7 {[%clk 0:00:03.1]} 45... c2 {[%clk
0:00:07.8]} 46. Nd6+ {[%clk 0:00:03.3]} 46... Kd8 {[%clk 0:00:08.3]} 47. Rc3
{[%clk 0:00:03.3]} 47... Rh1 {[%clk 0:00:05.1]} 0-1

[Event "Early-Titled-Tuesday-Blitz-October-03-2023"]
[Site "Chess.com"]
[Date "2023.10.03"]
[Round "8"]
[White "Tssunami"]
[Black "zajka-molotok"]
[Result "0-1"]
[WhiteElo "2401"]
[BlackElo "2565"]
[TimeControl "180+1"]
[EndTime "9:30:07 PDT"]
[Termination "zajka-molotok won on time"]

1. d4 {[%clk 0:03:00.9]} 1... d6 {[%clk 0:03:00.1]} 2. Nf3 {[%clk 0:02:59.7]}
2... Bg4 {[%clk 0:02:59.5]} 3. c4 {[%clk 0:03:00]} 3... Bxf3 {[%clk 0:02:55.1]}
4. gxf3 {[%clk 0:02:58.9]} 4... e5 {[%clk 0:02:50.7]} 5. Qb3 {[%clk 0:02:57.7]}
5... Qc8 {[%clk 0:02:48.5]} 6. d5 {[%clk 0:02:43.7]} 6... Nd7 {[%clk 0:02:47.4]}
7. h4 {[%clk 0:02:43.4]} 7... Be7 {[%clk 0:02:32]} 8. Bh3 {[%clk 0:02:38.2]}
8... Ngf6 {[%clk 0:02:09.8]} 9. h5 {[%clk 0:02:31]} 9... h6 {[%clk 0:02:02.4]}
10. Bf5 {[%clk 0:02:27.1]} 10... Rb8 {[%clk 0:01:44.6]} 11. Qa4 {[%clk
0:02:23.8]} 11... a6 {[%clk 0:01:38.2]} 12. Nc3 {[%clk 0:02:20.3]} 12... Kf8
{[%clk 0:01:29.3]} 13. Be3 {[%clk 0:02:02.9]} 13... Nc5 {[%clk 0:01:24]} 14. Qc2
{[%clk 0:01:57.5]} 14... Qe8 {[%clk 0:01:20.1]} 15. b4 {[%clk 0:01:52]} 15...
Ncd7 {[%clk 0:01:19.7]} 16. a3 {[%clk 0:01:37]} 16... b5 {[%clk 0:01:15.7]} 17.
cxb5 {[%clk 0:01:25.8]} 17... axb5 {[%clk 0:01:16.6]} 18. Rd1 {[%clk 0:00:59.1]}
18... Nb6 {[%clk 0:01:15.1]} 19. Bxb6 {[%clk 0:00:57.5]} 19... Rxb6 {[%clk
0:01:14]} 20. e4 {[%clk 0:00:51.5]} 20... Nd7 {[%clk 0:01:01.3]} 21. Ne2 {[%clk
0:00:48.9]} 21... Qd8 {[%clk 0:00:55]} 22. Rc1 {[%clk 0:00:46.3]} 22... Bg5
{[%clk 0:00:34.8]} 23. Qxc7 {[%clk 0:00:43.8]} 23... Ke7 {[%clk 0:00:35.2]} 24.
Qxd8+ {[%clk 0:00:33.7]} 24... Rxd8 {[%clk 0:00:36.1]} 25. Rc3 {[%clk
0:00:33.7]} 25... Rb7 {[%clk 0:00:27]} 26. Bxd7 {[%clk 0:00:30.1]} 26... Rdxd7
{[%clk 0:00:26.4]} 27. Ng3 {[%clk 0:00:29.8]} 27... Rdc7 {[%clk 0:00:24.1]} 28.
Nf5+ {[%clk 0:00:29.3]} 28... Kd7 {[%clk 0:00:20.8]} 29. Rc6 {[%clk 0:00:14.7]}
29... Rxc6 {[%clk 0:00:18.6]} 30. dxc6+ {[%clk 0:00:15.6]} 30... Kxc6 {[%clk
0:00:19.2]} 31. Nxg7 {[%clk 0:00:14.2]} 31... Ra7 {[%clk 0:00:18.7]} 32. O-O
{[%clk 0:00:10.4]} 32... Rxa3 {[%clk 0:00:18.4]} 33. Kg2 {[%clk 0:00:10.7]}
33... Rb3 {[%clk 0:00:17.5]} 34. Nf5 {[%clk 0:00:09.5]} 34... Rxb4 {[%clk
0:00:17.1]} 35. Ra1 {[%clk 0:00:09.3]} 35... Rb2 {[%clk 0:00:15.5]} 36. Ra6+
{[%clk 0:00:09.1]} 36... Kc5 {[%clk 0:00:15]} 37. Rxd6 {[%clk 0:00:07.9]} 37...
b4 {[%clk 0:00:14.7]} 38. Rd5+ {[%clk 0:00:07.2]} 38... Kc4 {[%clk 0:00:14.6]}
39. Rxe5 {[%clk 0:00:07.5]} 39... b3 {[%clk 0:00:13.6]} 40. Re8 {[%clk
0:00:07.6]} 40... Ra2 {[%clk 0:00:10.8]} 41. Rc8+ {[%clk 0:00:07.6]} 41... Kd3
{[%clk 0:00:10.6]} 42. Rb8 {[%clk 0:00:07.3]} 42... b2 {[%clk 0:00:10.3]} 43. e5
{[%clk 0:00:05.5]} 43... Bc1 {[%clk 0:00:09.6]} 44. f4 {[%clk 0:00:02.5]} 44...
Ra1 {[%clk 0:00:09.3]} 45. Nxh6 {[%clk 0:00:02.1]} 45... b1=Q {[%clk 0:00:08.8]}
46. Rxb1 {[%clk 0:00:02.7]} 46... Rxb1 {[%clk 0:00:09.7]} 47. Kf3 {[%clk
0:00:02.3]} 47... Rb4 {[%clk 0:00:09.1]} 0-1

[Event "Early-Titled-Tuesday-Blitz-October-03-2023"]
[Site "Chess.com"]
[Date "2023.10.03"]
[Round "8"]
[White "stratacticos"]
[Black "LUISMIGUELOV"]
[Result "0-1"]
[WhiteElo "1759"]
[BlackElo "2153"]
[TimeControl "180+1"]
[EndTime "9:30:11 PDT"]
[Termination "LUISMIGUELOV won on time"]

1. b4 {[%clk 0:03:00.9]} 1... e5 {[%clk 0:02:54.7]} 2. Bb2 {[%clk 0:03:00.3]}
2... d6 {[%clk 0:02:53.2]} 3. g3 {[%clk 0:02:57.8]} 3... g6 {[%clk 0:02:53.3]}
4. f4 {[%clk 0:02:56.9]} 4... Bg7 {[%clk 0:02:53.7]} 5. fxe5 {[%clk 0:02:56]}
5... dxe5 {[%clk 0:02:53.2]} 6. Nf3 {[%clk 0:02:55.6]} 6... Nd7 {[%clk
0:02:48.9]} 7. Bg2 {[%clk 0:02:52.3]} 7... c6 {[%clk 0:02:48.8]} 8. a3 {[%clk
0:02:47.1]} 8... Ne7 {[%clk 0:02:48.6]} 9. e4 {[%clk 0:02:36.2]} 9... O-O {[%clk
0:02:48.6]} 10. O-O {[%clk 0:02:34.3]} 10... Re8 {[%clk 0:02:44.9]} 11. Ng5
{[%clk 0:02:22.5]} 11... Rf8 {[%clk 0:02:34.3]} 12. c4 {[%clk 0:02:13.9]} 12...
h6 {[%clk 0:02:32.5]} 13. Nf3 {[%clk 0:02:10.6]} 13... Nf6 {[%clk 0:02:21.7]}
14. Nxe5 {[%clk 0:02:04.6]} 14... Be6 {[%clk 0:02:06.1]} 15. d4 {[%clk
0:01:57.6]} 15... Nd7 {[%clk 0:01:53.6]} 16. Nxd7 {[%clk 0:01:54.2]} 16... Qxd7
{[%clk 0:01:52.6]} 17. d5 {[%clk 0:01:30]} 17... Bxb2 {[%clk 0:01:50.1]} 18. Ra2
{[%clk 0:01:29.8]} 18... Bg7 {[%clk 0:01:41.1]} 19. dxe6 {[%clk 0:01:28.7]}
19... Qxe6 {[%clk 0:01:41.2]} 20. Nd2 {[%clk 0:01:22.1]} 20... Rad8 {[%clk
0:01:39.7]} 21. Qe2 {[%clk 0:01:21.9]} 21... Bd4+ {[%clk 0:01:32.8]} 22. Kh1
{[%clk 0:01:21.2]} 22... b6 {[%clk 0:01:33.2]} 23. Nf3 {[%clk 0:01:20.8]} 23...
c5 {[%clk 0:01:30.1]} 24. Nxd4 {[%clk 0:01:18.1]} 24... Rxd4 {[%clk 0:01:28.6]}
25. bxc5 {[%clk 0:01:17.4]} 25... bxc5 {[%clk 0:01:27.5]} 26. Rc2 {[%clk
0:00:57.1]} 26... Nc6 {[%clk 0:01:27]} 27. Qe3 {[%clk 0:00:52.7]} 27... Ne5
{[%clk 0:01:23.5]} 28. Qxh6 {[%clk 0:00:51.4]} 28... Rxc4 {[%clk 0:01:12.3]} 29.
Bh3 {[%clk 0:00:41]} 29... Ng4 {[%clk 0:00:49.6]} 30. Bxg4 {[%clk 0:00:38.8]}
30... Qxe4+ {[%clk 0:00:46.4]} 31. Rg2 {[%clk 0:00:29.1]} 31... Qxg4 {[%clk
0:00:44.5]} 32. Qd2 {[%clk 0:00:22]} 32... Qe4 {[%clk 0:00:32.9]} 33. Qe2 {[%clk
0:00:20.2]} 33... Qxe2 {[%clk 0:00:30.5]} 34. Rxe2 {[%clk 0:00:20.2]} 34... Rc3
{[%clk 0:00:29.7]} 35. a4 {[%clk 0:00:18.8]} 35... a5 {[%clk 0:00:28.3]} 36. Re7
{[%clk 0:00:18.1]} 36... Ra3 {[%clk 0:00:26.5]} 37. Rc7 {[%clk 0:00:17.8]} 37...
Rxa4 {[%clk 0:00:25.4]} 38. Rxc5 {[%clk 0:00:17.5]} 38... Ra2 {[%clk 0:00:25.6]}
39. Rfc1 {[%clk 0:00:12.4]} 39... Re8 {[%clk 0:00:24.6]} 40. Rc8 {[%clk
0:00:12]} 40... Rxc8 {[%clk 0:00:24.1]} 41. Rxc8+ {[%clk 0:00:11.6]} 41... Kg7
{[%clk 0:00:24.3]} 42. Ra8 {[%clk 0:00:11]} 42... a4 {[%clk 0:00:24.6]} 43. Ra6
{[%clk 0:00:09.7]} 43... a3 {[%clk 0:00:24.3]} 44. Kg1 {[%clk 0:00:08.1]} 44...
f5 {[%clk 0:00:24]} 45. h4 {[%clk 0:00:05.9]} 45... Kh6 {[%clk 0:00:23.9]} 46.
Kf1 {[%clk 0:00:02.4]} 46... Kh5 {[%clk 0:00:23.7]} 47. Kg1 {[%clk 0:00:02.5]}
47... Ra1+ {[%clk 0:00:17.8]} 48. Kg2 {[%clk 0:00:02.1]} 48... Ra2+ {[%clk
0:00:18]} 49. Kg1 {[%clk 0:00:01.8]} 49... Ra1+ {[%clk 0:00:17.7]} 50. Kg2
{[%clk 0:00:02]} 50... a2 {[%clk 0:00:17.9]} 0-1